[Event "Early-Titled-Tuesday-Blitz-February-13-2024"]
[Site "Chess.com"]
[Date "2024.02.13"]
[Round "9"]
[White "vladgoncharov"]
[Black "ProfessorChess101"]
[Result "0-1"]
[WhiteElo "2628"]
[BlackElo "2798"]
[TimeControl "180+1"]
[EndTime "9:49:13 PST"]
[Termination "ProfessorChess101 won on time"]

1. d4 {[%clk 0:03:00.9]} 1... Nf6 {[%clk 0:02:58.7]} 2. c4 {[%clk 0:03:00.4]}
2... e6 {[%clk 0:02:58.1]} 3. Nc3 {[%clk 0:02:53.9]} 3... d5 {[%clk 0:02:55.4]}
4. cxd5 {[%clk 0:02:53.1]} 4... exd5 {[%clk 0:02:56.3]} 5. Bg5 {[%clk
0:02:53.3]} 5... c6 {[%clk 0:02:56.7]} 6. e3 {[%clk 0:02:53.5]} 6... Be7 {[%clk
0:02:55.2]} 7. Bd3 {[%clk 0:02:53]} 7... Nbd7 {[%clk 0:02:55.7]} 8. Nge2 {[%clk
0:02:52.6]} 8... Nf8 {[%clk 0:02:56.4]} 9. O-O {[%clk 0:02:44.3]} 9... Ne6
{[%clk 0:02:55.6]} 10. Bh4 {[%clk 0:02:44]} 10... O-O {[%clk 0:02:55.4]} 11. a3
{[%clk 0:02:40.8]} 11... a5 {[%clk 0:02:51.8]} 12. Rc1 {[%clk 0:02:37.2]} 12...
b5 {[%clk 0:02:51.4]} 13. Nb1 {[%clk 0:02:29.2]} 13... Bb7 {[%clk 0:02:49.9]}
14. Nd2 {[%clk 0:02:29.3]} 14... Nd7 {[%clk 0:02:38.6]} 15. Bg3 {[%clk
0:02:23.4]} 15... Re8 {[%clk 0:02:35.3]} 16. Bb1 {[%clk 0:02:09.2]} 16... Ndf8
{[%clk 0:02:33.4]} 17. Qc2 {[%clk 0:01:56.2]} 17... Rc8 {[%clk 0:02:29.6]} 18.
Nf3 {[%clk 0:01:51]} 18... Qb6 {[%clk 0:02:13.4]} 19. Ne5 {[%clk 0:01:50.6]}
19... c5 {[%clk 0:02:12.2]} 20. Nd7 {[%clk 0:01:28.8]} 20... Qd8 {[%clk
0:02:09.2]} 21. Nxc5 {[%clk 0:01:24.7]} 21... Nxc5 {[%clk 0:02:06.7]} 22. dxc5
{[%clk 0:01:24.9]} 22... Bxc5 {[%clk 0:02:07.3]} 23. Qd3 {[%clk 0:01:25.2]}
23... Qb6 {[%clk 0:02:02.6]} 24. Rfd1 {[%clk 0:01:14.1]} 24... b4 {[%clk
0:01:53]} 25. axb4 {[%clk 0:01:10.9]} 25... axb4 {[%clk 0:01:37.3]} 26. Qd2
{[%clk 0:00:42.2]} 26... Ne6 {[%clk 0:01:28.1]} 27. Be5 {[%clk 0:00:37]} 27...
Qd8 {[%clk 0:00:57.2]} 28. Bd4 {[%clk 0:00:33.2]} 28... Bd6 {[%clk 0:00:52.7]}
29. Ng3 {[%clk 0:00:29.2]} 29... Qh4 {[%clk 0:00:42.9]} 30. Rxc8 {[%clk
0:00:27.6]} 30... Rxc8 {[%clk 0:00:40.5]} 31. Bf5 {[%clk 0:00:26.3]} 31... Rc4
{[%clk 0:00:25.7]} 32. Bxe6 {[%clk 0:00:20.1]} 32... fxe6 {[%clk 0:00:26.6]} 33.
b3 {[%clk 0:00:20.1]} 33... Rc7 {[%clk 0:00:26.6]} 34. Rc1 {[%clk 0:00:19.9]}
34... Qd8 {[%clk 0:00:25.3]} 35. Rxc7 {[%clk 0:00:19]} 35... Qxc7 {[%clk
0:00:26.2]} 36. f4 {[%clk 0:00:18.9]} 36... Ba6 {[%clk 0:00:21.8]} 37. Kf2
{[%clk 0:00:17.4]} 37... Qa5 {[%clk 0:00:14.8]} 38. Qb2 {[%clk 0:00:17]} 38...
Bf8 {[%clk 0:00:13.6]} 39. Nh5 {[%clk 0:00:16.1]} 39... Qa3 {[%clk 0:00:11.7]}
40. Ke1 {[%clk 0:00:13]} 40... Bd3 {[%clk 0:00:08.8]} 41. Kd2 {[%clk 0:00:12]}
41... Qxb2+ {[%clk 0:00:06.9]} 42. Bxb2 {[%clk 0:00:11.5]} 42... Be4 {[%clk
0:00:07.5]} 43. Ng3 {[%clk 0:00:05.1]} 43... Bxg2 {[%clk 0:00:07.3]} 44. Be5
{[%clk 0:00:05.7]} 44... Kf7 {[%clk 0:00:07]} 45. Ne2 {[%clk 0:00:05.8]} 45...
h6 {[%clk 0:00:04.7]} 46. Nd4 {[%clk 0:00:06.3]} 46... g5 {[%clk 0:00:04.8]} 47.
fxg5 {[%clk 0:00:05.7]} 47... hxg5 {[%clk 0:00:05.7]} 48. Nc6 {[%clk 0:00:06]}
48... Ke8 {[%clk 0:00:03.3]} 49. Nd4 {[%clk 0:00:04.9]} 49... Be4 {[%clk
0:00:02.5]} 50. Bf6 {[%clk 0:00:04.6]} 50... g4 {[%clk 0:00:02.1]} 51. Be5
{[%clk 0:00:04.9]} 51... Bf5 {[%clk 0:00:02.3]} 52. Ne2 {[%clk 0:00:04.4]} 52...
Kd7 {[%clk 0:00:02.5]} 53. Nd4 {[%clk 0:00:03.1]} 53... Bc5 {[%clk 0:00:02.1]}
0-1

[Event "Early-Titled-Tuesday-Blitz-February-13-2024"]
[Site "Chess.com"]
[Date "2024.02.13"]
[Round "9"]
[White "Yaacovn"]
[Black "Evgeny81"]
[Result "0-1"]
[WhiteElo "2920"]
[BlackElo "2760"]
[TimeControl "180+1"]
[EndTime "9:49:14 PST"]
[Termination "Evgeny81 won by checkmate"]

1. d4 {[%clk 0:03:00.9]} 1... c5 {[%clk 0:02:57.7]} 2. c3 {[%clk 0:03:00.2]}
2... e6 {[%clk 0:02:55.5]} 3. Nf3 {[%clk 0:03:00.1]} 3... Nf6 {[%clk 0:02:55.8]}
4. Bf4 {[%clk 0:03:00.2]} 4... d5 {[%clk 0:02:56]} 5. e3 {[%clk 0:02:59.8]} 5...
Bd6 {[%clk 0:02:56]} 6. Bg3 {[%clk 0:03:00.1]} 6... O-O {[%clk 0:02:54.9]} 7.
Nbd2 {[%clk 0:03:00.3]} 7... Qc7 {[%clk 0:02:55.1]} 8. Rc1 {[%clk 0:02:58.9]}
8... Nbd7 {[%clk 0:02:55.3]} 9. c4 {[%clk 0:02:58.8]} 9... b6 {[%clk 0:02:49.6]}
10. cxd5 {[%clk 0:02:59]} 10... exd5 {[%clk 0:02:49.4]} 11. Bb5 {[%clk
0:02:59.3]} 11... Bb7 {[%clk 0:02:48.2]} 12. Qc2 {[%clk 0:02:46.4]} 12... Rac8
{[%clk 0:02:46.5]} 13. O-O {[%clk 0:02:40.8]} 13... Bxg3 {[%clk 0:02:45.5]} 14.
hxg3 {[%clk 0:02:40.8]} 14... Qd6 {[%clk 0:02:45.4]} 15. Qf5 {[%clk 0:02:37]}
15... Rc7 {[%clk 0:02:40.8]} 16. Ne5 {[%clk 0:02:34.5]} 16... g6 {[%clk
0:02:18.1]} 17. Qf4 {[%clk 0:02:33.8]} 17... Nh5 {[%clk 0:02:18.2]} 18. Qh4
{[%clk 0:01:12.5]} 18... Nxe5 {[%clk 0:02:17.6]} 19. dxe5 {[%clk 0:01:13]} 19...
Qxe5 {[%clk 0:02:18.5]} 20. b3 {[%clk 0:01:05.6]} 20... Kg7 {[%clk 0:02:05]} 21.
Nf3 {[%clk 0:01:02.6]} 21... Qf6 {[%clk 0:02:02.7]} 22. Qa4 {[%clk 0:01:01.7]}
22... a6 {[%clk 0:01:53.2]} 23. Be2 {[%clk 0:01:00.3]} 23... Kg8 {[%clk
0:01:47.4]} 24. g4 {[%clk 0:00:58.4]} 24... Ng7 {[%clk 0:01:47.2]} 25. g5 {[%clk
0:00:58.4]} 25... Qe7 {[%clk 0:01:44.2]} 26. Qf4 {[%clk 0:00:55.5]} 26... Re8
{[%clk 0:01:36.8]} 27. Rfd1 {[%clk 0:00:45.8]} 27... Ne6 {[%clk 0:01:35.7]} 28.
Qe5 {[%clk 0:00:45.4]} 28... Rd7 {[%clk 0:01:31.6]} 29. a3 {[%clk 0:00:42.7]}
29... Nf8 {[%clk 0:01:23.2]} 30. Qg3 {[%clk 0:00:35.8]} 30... Qd6 {[%clk
0:01:19.9]} 31. Qh4 {[%clk 0:00:32.1]} 31... d4 {[%clk 0:01:15.8]} 32. Nh2
{[%clk 0:00:30.4]} 32... Rde7 {[%clk 0:00:45.8]} 33. Ng4 {[%clk 0:00:28.1]}
33... Nd7 {[%clk 0:00:46]} 34. Bf1 {[%clk 0:00:20.4]} 34... Re4 {[%clk
0:00:43.7]} 35. exd4 {[%clk 0:00:13.7]} 35... Rxd4 {[%clk 0:00:31.7]} 36. Nh6+
{[%clk 0:00:13.5]} 36... Kg7 {[%clk 0:00:27.8]} 37. Rxd4 {[%clk 0:00:13.7]}
37... cxd4 {[%clk 0:00:25.6]} 38. Rd1 {[%clk 0:00:12.5]} 38... Re4 {[%clk
0:00:24.7]} 39. Qh2 {[%clk 0:00:06.2]} 39... Ne5 {[%clk 0:00:20.3]} 40. f3
{[%clk 0:00:04.7]} 40... Re3 {[%clk 0:00:18.7]} 41. Kh1 {[%clk 0:00:03.9]} 41...
Rxf3 {[%clk 0:00:17.1]} 42. Re1 {[%clk 0:00:01.6]} 42... Re3 {[%clk 0:00:16.4]}
43. Rd1 {[%clk 0:00:01.4]} 43... Be4 {[%clk 0:00:12.4]} 44. Qf4 {[%clk
0:00:01.6]} 44... Rh3+ {[%clk 0:00:06.3]} 45. Kg1 {[%clk 0:00:01.7]} 45... Re3
{[%clk 0:00:05.8]} 46. Qxe3 {[%clk 0:00:01.7]} 46... Nf3+ {[%clk 0:00:02.3]} 47.
Kf2 {[%clk 0:00:01.5]} 47... dxe3+ {[%clk 0:00:02]} 48. Kxe3 {[%clk 0:00:02.2]}
48... Qxd1 {[%clk 0:00:02.2]} 49. gxf3 {[%clk 0:00:03.1]} 49... Qe1+ {[%clk
0:00:03]} 50. Be2 {[%clk 0:00:03.9]} 50... Bd5 {[%clk 0:00:03.3]} 51. Ng4 {[%clk
0:00:04.1]} 51... Be6 {[%clk 0:00:04.2]} 52. Nf6 {[%clk 0:00:04.4]} 52... Kf8
{[%clk 0:00:04.8]} 53. Ne8 {[%clk 0:00:05.3]} 53... Kxe8 {[%clk 0:00:04.5]} 54.
Kd3 {[%clk 0:00:05.1]} 54... Qb1+ {[%clk 0:00:04.1]} 55. Ke3 {[%clk 0:00:06]}
55... Qxb3+ {[%clk 0:00:04.8]} 56. Kf2 {[%clk 0:00:06.1]} 56... Qxa3 {[%clk
0:00:05.3]} 57. f4 {[%clk 0:00:07]} 57... Qc5+ {[%clk 0:00:06]} 58. Kg3 {[%clk
0:00:07.1]} 58... Bf5 {[%clk 0:00:06.9]} 59. Bg4 {[%clk 0:00:08]} 59... Qe3+
{[%clk 0:00:07.1]} 60. Kh4 {[%clk 0:00:08.9]} 60... Bxg4 {[%clk 0:00:06.8]} 61.
f5 {[%clk 0:00:09.1]} 61... Qh3# {[%clk 0:00:04.2]} 0-1

[Event "Early-Titled-Tuesday-Blitz-February-13-2024"]
[Site "Chess.com"]
[Date "2024.02.13"]
[Round "9"]
[White "Som2310"]
[Black "Jospem"]
[Result "0-1"]
[WhiteElo "2804"]
[BlackElo "3037"]
[TimeControl "180+1"]
[EndTime "9:49:15 PST"]
[Termination "Jospem won by resignation"]

1. e4 {[%clk 0:03:00.9]} 1... c5 {[%clk 0:02:59.8]} 2. Nf3 {[%clk 0:03:00.7]}
2... d6 {[%clk 0:03:00.4]} 3. d4 {[%clk 0:03:00.7]} 3... cxd4 {[%clk 0:03:01.3]}
4. Nxd4 {[%clk 0:03:01]} 4... a6 {[%clk 0:03:02.2]} 5. c4 {[%clk 0:03:00.8]}
5... e6 {[%clk 0:03:02.6]} 6. Nc3 {[%clk 0:03:00.9]} 6... Nf6 {[%clk 0:03:03.5]}
7. Be2 {[%clk 0:03:00.6]} 7... b6 {[%clk 0:03:04.2]} 8. O-O {[%clk 0:03:00.4]}
8... Bb7 {[%clk 0:03:04.9]} 9. f3 {[%clk 0:02:59.9]} 9... Nbd7 {[%clk
0:03:04.9]} 10. Be3 {[%clk 0:02:59.8]} 10... Be7 {[%clk 0:03:05.5]} 11. Qd2
{[%clk 0:03:00.2]} 11... O-O {[%clk 0:03:05.7]} 12. Rfd1 {[%clk 0:03:00.4]}
12... Qc7 {[%clk 0:03:05.8]} 13. Rac1 {[%clk 0:03:00.6]} 13... Rac8 {[%clk
0:03:06.1]} 14. Bf1 {[%clk 0:03:00.4]} 14... Qb8 {[%clk 0:03:06.6]} 15. Qf2
{[%clk 0:03:00.6]} 15... Rfe8 {[%clk 0:03:06.8]} 16. a3 {[%clk 0:02:59]} 16...
Bd8 {[%clk 0:03:06.8]} 17. b4 {[%clk 0:02:58.1]} 17... Bc7 {[%clk 0:03:07]} 18.
g3 {[%clk 0:02:55.9]} 18... h5 {[%clk 0:03:03.9]} 19. Bg5 {[%clk 0:02:44.3]}
19... Nh7 {[%clk 0:03:00.7]} 20. Be3 {[%clk 0:02:39.7]} 20... Nhf6 {[%clk
0:03:00.9]} 21. Bg5 {[%clk 0:02:33.8]} 21... Nh7 {[%clk 0:02:59.5]} 22. Be3
{[%clk 0:02:33.8]} 22... h4 {[%clk 0:03:00.2]} 23. gxh4 {[%clk 0:02:30.4]} 23...
Ndf6 {[%clk 0:03:00.6]} 24. Bh3 {[%clk 0:02:23.8]} 24... Rcd8 {[%clk 0:02:57.4]}
25. Bg5 {[%clk 0:02:06.3]} 25... g6 {[%clk 0:02:49.3]} 26. Nce2 {[%clk
0:01:58.2]} 26... d5 {[%clk 0:02:43.1]} 27. exd5 {[%clk 0:01:53.7]} 27... exd5
{[%clk 0:02:44]} 28. c5 {[%clk 0:01:54.1]} 28... bxc5 {[%clk 0:02:42.4]} 29.
bxc5 {[%clk 0:01:52.6]} 29... Nxg5 {[%clk 0:02:42.3]} 30. hxg5 {[%clk
0:01:52.5]} 30... Nh5 {[%clk 0:02:43]} 31. Rb1 {[%clk 0:01:47.9]} 31... Qa8
{[%clk 0:02:37]} 32. Rdc1 {[%clk 0:01:42.9]} 32... Bc8 {[%clk 0:02:30.2]} 33.
Bxc8 {[%clk 0:01:39.1]} 33... Qxc8 {[%clk 0:02:31.1]} 34. Rc3 {[%clk 0:01:30.1]}
34... Nf4 {[%clk 0:02:25.1]} 35. Nxf4 {[%clk 0:01:28.3]} 35... Bxf4 {[%clk
0:02:26]} 36. c6 {[%clk 0:01:19.2]} 36... Qc7 {[%clk 0:02:19.7]} 37. Rb7 {[%clk
0:00:56.1]} 37... Qe5 {[%clk 0:02:18.4]} 38. c7 {[%clk 0:00:53.1]} 38... Rc8
{[%clk 0:02:18.2]} 39. Kf1 {[%clk 0:00:40.8]} 39... Qxg5 {[%clk 0:02:10.9]} 40.
Ne2 {[%clk 0:00:32.5]} 40... Be3 {[%clk 0:01:47]} 41. Qg3 {[%clk 0:00:32.2]}
41... Qf6 {[%clk 0:01:37.6]} 42. Rb8 {[%clk 0:00:31.8]} 42... Bb6 {[%clk
0:01:23.6]} 43. Rxc8 {[%clk 0:00:23.8]} 43... Rxc8 {[%clk 0:01:24.5]} 44. Qf4
{[%clk 0:00:23.3]} 44... Qe7 {[%clk 0:01:12.2]} 45. Qd2 {[%clk 0:00:19.1]} 45...
Bxc7 {[%clk 0:01:08.6]} 46. Qxd5 {[%clk 0:00:18.2]} 46... Rd8 {[%clk 0:01:07.1]}
47. Qe4 {[%clk 0:00:17.7]} 47... Rd1+ {[%clk 0:00:59.1]} 48. Kg2 {[%clk
0:00:18]} 48... Qg5+ {[%clk 0:00:57.3]} 49. Qg4 {[%clk 0:00:17.8]} 49... Qe5
{[%clk 0:00:54.2]} 50. f4 {[%clk 0:00:14.9]} 50... Qe7 {[%clk 0:00:48.1]} 51.
Qc8+ {[%clk 0:00:14.7]} 51... Rd8 {[%clk 0:00:45.5]} 52. Qg4 {[%clk 0:00:13.3]}
52... Kg7 {[%clk 0:00:44.5]} 53. Qf3 {[%clk 0:00:12.4]} 53... Rd2 {[%clk
0:00:42.5]} 54. Re3 {[%clk 0:00:12.5]} 54... Qd6 {[%clk 0:00:41.1]} 55. Re4
{[%clk 0:00:12.7]} 55... Qc5 {[%clk 0:00:34.4]} 56. Re3 {[%clk 0:00:11.4]} 56...
Bb6 {[%clk 0:00:33.5]} 57. Re5 {[%clk 0:00:11.1]} 57... Qc2 {[%clk 0:00:30.4]}
58. Re4 {[%clk 0:00:10.2]} 58... Rd3 {[%clk 0:00:27.6]} 59. Qg4 {[%clk
0:00:08.7]} 59... Rd5 {[%clk 0:00:21.9]} 60. Qf3 {[%clk 0:00:08.4]} 60... Qc5
{[%clk 0:00:21.5]} 61. f5 {[%clk 0:00:07.4]} 61... Rxf5 {[%clk 0:00:21.7]} 62.
Qg3 {[%clk 0:00:07.4]} 62... Rf2+ {[%clk 0:00:19.6]} 63. Kh3 {[%clk 0:00:07.1]}
63... Qf5+ {[%clk 0:00:19.9]} 64. Qg4 {[%clk 0:00:06.7]} 64... Qxg4+ {[%clk
0:00:16.6]} 0-1

[Event "Early-Titled-Tuesday-Blitz-February-13-2024"]
[Site "Chess.com"]
[Date "2024.02.13"]
[Round "9"]
[White "KaterynaLagno"]
[Black "ChristopherYoo"]
[Result "0-1"]
[WhiteElo "2799"]
[BlackElo "2969"]
[TimeControl "180+1"]
[EndTime "9:49:18 PST"]
[Termination "ChristopherYoo won by checkmate"]

1. e4 {[%clk 0:02:58.2]} 1... c5 {[%clk 0:02:57]} 2. Nf3 {[%clk 0:02:58.2]} 2...
e6 {[%clk 0:02:57.2]} 3. d4 {[%clk 0:02:57.7]} 3... cxd4 {[%clk 0:02:58.1]} 4.
Nxd4 {[%clk 0:02:58.6]} 4... Nc6 {[%clk 0:02:58.2]} 5. Nc3 {[%clk 0:02:59.3]}
5... Qc7 {[%clk 0:02:58.1]} 6. Nxc6 {[%clk 0:02:58.3]} 6... bxc6 {[%clk
0:02:57.9]} 7. Bd3 {[%clk 0:02:56.7]} 7... d5 {[%clk 0:02:57.7]} 8. Qe2 {[%clk
0:02:52.8]} 8... Nf6 {[%clk 0:02:52.9]} 9. O-O {[%clk 0:02:43.9]} 9... Be7
{[%clk 0:02:52.9]} 10. exd5 {[%clk 0:02:36.8]} 10... cxd5 {[%clk 0:02:50.9]} 11.
Nb5 {[%clk 0:02:36.8]} 11... Qb6 {[%clk 0:02:26.9]} 12. Be3 {[%clk 0:02:33.5]}
12... Bc5 {[%clk 0:02:20.4]} 13. b4 {[%clk 0:02:27.6]} 13... Bxe3 {[%clk
0:02:20.1]} 14. fxe3 {[%clk 0:02:28.5]} 14... Bd7 {[%clk 0:02:00.4]} 15. c4
{[%clk 0:02:22.2]} 15... Bxb5 {[%clk 0:01:56.3]} 16. cxb5 {[%clk 0:02:22.3]}
16... O-O {[%clk 0:01:47.8]} 17. a4 {[%clk 0:02:03.9]} 17... Rfc8 {[%clk
0:01:35.4]} 18. a5 {[%clk 0:02:00.3]} 18... Qd6 {[%clk 0:01:35.5]} 19. Qb2
{[%clk 0:01:47.5]} 19... Ng4 {[%clk 0:01:33.2]} 20. Rf4 {[%clk 0:01:30.1]} 20...
Nxe3 {[%clk 0:01:27.6]} 21. Rf3 {[%clk 0:01:25.2]} 21... d4 {[%clk 0:01:24.5]}
22. Be4 {[%clk 0:01:17.6]} 22... Rab8 {[%clk 0:01:21.8]} 23. b6 {[%clk
0:01:18.1]} 23... a6 {[%clk 0:00:42.8]} 24. Bd3 {[%clk 0:01:10.7]} 24... Qd5
{[%clk 0:00:29]} 25. Rxe3 {[%clk 0:01:00.3]} 25... dxe3 {[%clk 0:00:27.4]} 26.
Bxa6 {[%clk 0:01:01.2]} 26... Rd8 {[%clk 0:00:17]} 27. Be2 {[%clk 0:01:01.2]}
27... Qg5 {[%clk 0:00:06.5]} 28. Bf3 {[%clk 0:00:50.3]} 28... Rd2 {[%clk
0:00:05.1]} 29. Qc3 {[%clk 0:00:50.6]} 29... e2 {[%clk 0:00:01.6]} 30. Re1
{[%clk 0:00:48.3]} 30... Rbd8 {[%clk 0:00:01.2]} 31. Bxe2 {[%clk 0:00:41]} 31...
Qh4 {[%clk 0:00:01.6]} 32. Qg3 {[%clk 0:00:39.4]} 32... Qxb4 {[%clk 0:00:01.5]}
33. Bf3 {[%clk 0:00:28.2]} 33... Qxa5 {[%clk 0:00:01.6]} 34. b7 {[%clk 0:00:28]}
34... Qb6+ {[%clk 0:00:02]} 35. Kh1 {[%clk 0:00:27.9]} 35... R2d3 {[%clk
0:00:02.5]} 36. Rf1 {[%clk 0:00:26.1]} 36... Rb3 {[%clk 0:00:02.2]} 37. Qf4
{[%clk 0:00:25.1]} 37... Rb1 {[%clk 0:00:02.8]} 38. Qc4 {[%clk 0:00:14.3]} 38...
Rxf1+ {[%clk 0:00:02.9]} 39. Qxf1 {[%clk 0:00:15.2]} 39... g6 {[%clk 0:00:02.9]}
40. h3 {[%clk 0:00:14.2]} 40... h5 {[%clk 0:00:03.2]} 41. Qa1 {[%clk 0:00:14]}
41... Qc7 {[%clk 0:00:02.6]} 42. Qf6 {[%clk 0:00:13.4]} 42... Rb8 {[%clk
0:00:02.5]} 43. Qb2 {[%clk 0:00:13.1]} 43... Qd6 {[%clk 0:00:02.7]} 44. Qb5
{[%clk 0:00:11.6]} 44... e5 {[%clk 0:00:02.8]} 45. Bd5 {[%clk 0:00:10.8]} 45...
Rd8 {[%clk 0:00:02.4]} 46. Qc4 {[%clk 0:00:09.2]} 46... Kg7 {[%clk 0:00:02.5]}
47. Bxf7 {[%clk 0:00:08.4]} 47... e4 {[%clk 0:00:03.2]} 48. Bd5 {[%clk
0:00:06.9]} 48... e3 {[%clk 0:00:03.8]} 49. Bf3 {[%clk 0:00:07.2]} 49... Re8
{[%clk 0:00:03.7]} 50. Qc3+ {[%clk 0:00:06.6]} 50... Kh7 {[%clk 0:00:03.7]} 51.
Be2 {[%clk 0:00:05.6]} 51... Qb8 {[%clk 0:00:02.4]} 52. Qb3 {[%clk 0:00:05.5]}
52... Re7 {[%clk 0:00:02.6]} 53. Bf3 {[%clk 0:00:04.1]} 53... e2 {[%clk
0:00:02.9]} 54. Bxe2 {[%clk 0:00:04.1]} 54... Rxe2 {[%clk 0:00:03.8]} 55. Qf7+
{[%clk 0:00:03.7]} 55... Kh6 {[%clk 0:00:04.6]} 56. Qd7 {[%clk 0:00:03.1]} 56...
Re1# {[%clk 0:00:04.5]} 0-1

[Event "Early-Titled-Tuesday-Blitz-February-13-2024"]
[Site "Chess.com"]
[Date "2024.02.13"]
[Round "9"]
[White "atomicmate123"]
[Black "GlavkonVVS"]
[Result "1-0"]
[WhiteElo "2378"]
[BlackElo "2557"]
[TimeControl "180+1"]
[EndTime "9:49:26 PST"]
[Termination "atomicmate123 won on time"]

1. e4 {[%clk 0:03:00.9]} 1... c5 {[%clk 0:02:58.5]} 2. Nf3 {[%clk 0:03:01]} 2...
d6 {[%clk 0:02:56.5]} 3. d4 {[%clk 0:03:00.8]} 3... cxd4 {[%clk 0:02:56.6]} 4.
Nxd4 {[%clk 0:03:01.7]} 4... Nf6 {[%clk 0:02:54.9]} 5. Nc3 {[%clk 0:03:01.5]}
5... a6 {[%clk 0:02:55]} 6. Bc4 {[%clk 0:03:01.3]} 6... e6 {[%clk 0:02:51.3]} 7.
Bb3 {[%clk 0:03:01.4]} 7... Qc7 {[%clk 0:02:48.4]} 8. Be3 {[%clk 0:02:51.1]}
8... Nbd7 {[%clk 0:02:46.5]} 9. Qe2 {[%clk 0:02:46.5]} 9... Nc5 {[%clk
0:02:44.2]} 10. f3 {[%clk 0:02:46.4]} 10... Be7 {[%clk 0:02:40]} 11. a3 {[%clk
0:02:46]} 11... b5 {[%clk 0:02:32.7]} 12. Ba2 {[%clk 0:02:45.7]} 12... Bb7
{[%clk 0:02:20.7]} 13. g4 {[%clk 0:02:45.4]} 13... h6 {[%clk 0:02:09.6]} 14. h4
{[%clk 0:02:36.6]} 14... Rc8 {[%clk 0:01:50.6]} 15. O-O-O {[%clk 0:02:34.9]}
15... Na4 {[%clk 0:01:32.2]} 16. Nxa4 {[%clk 0:02:26]} 16... bxa4 {[%clk
0:01:32.1]} 17. g5 {[%clk 0:02:15.2]} 17... Nd7 {[%clk 0:01:03.5]} 18. g6 {[%clk
0:02:00.5]} 18... Nc5 {[%clk 0:00:59.8]} 19. gxf7+ {[%clk 0:01:59.8]} 19... Kxf7
{[%clk 0:00:59.6]} 20. Rhg1 {[%clk 0:01:41.7]} 20... Bf6 {[%clk 0:00:43.2]} 21.
Qg2 {[%clk 0:01:36.2]} 21... g5 {[%clk 0:00:27.6]} 22. Rd2 {[%clk 0:01:01.5]}
22... Rhg8 {[%clk 0:00:25.6]} 23. Qg4 {[%clk 0:00:59.7]} 23... Bxd4 {[%clk
0:00:22.3]} 24. Bxd4 {[%clk 0:00:56.2]} 24... Nb3+ {[%clk 0:00:21]} 25. Bxb3
{[%clk 0:00:54.3]} 25... axb3 {[%clk 0:00:20.7]} 26. Qh5+ {[%clk 0:00:54.2]}
26... Ke7 {[%clk 0:00:19.6]} 27. Qxh6 {[%clk 0:00:52]} 27... e5 {[%clk
0:00:18.7]} 28. Be3 {[%clk 0:00:40.2]} 28... Rcf8 {[%clk 0:00:12.1]} 29. Bxg5+
{[%clk 0:00:34.6]} 29... Kd7 {[%clk 0:00:10.5]} 30. Qh7+ {[%clk 0:00:30.4]}
30... Kc8 {[%clk 0:00:09.8]} 31. Qxc7+ {[%clk 0:00:17.6]} 31... Kxc7 {[%clk
0:00:09.6]} 32. Rgd1 {[%clk 0:00:16.9]} 32... Rxf3 {[%clk 0:00:09.2]} 33. Rxd6
{[%clk 0:00:16.3]} 33... Rc8 {[%clk 0:00:09.3]} 34. cxb3 {[%clk 0:00:11.4]}
34... Bxe4 {[%clk 0:00:07.8]} 35. Be7 {[%clk 0:00:04.3]} 35... Kb8+ {[%clk
0:00:07.7]} 36. Kd2 {[%clk 0:00:04.7]} 36... Rc2+ {[%clk 0:00:07.2]} 37. Ke1
{[%clk 0:00:05.2]} 37... Rh3 {[%clk 0:00:06.5]} 38. Rd8+ {[%clk 0:00:04.6]}
38... Kb7 {[%clk 0:00:05.4]} 39. R8d7+ {[%clk 0:00:04.9]} 39... Rc7 {[%clk
0:00:05.1]} 40. Rxc7+ {[%clk 0:00:04.7]} 40... Kxc7 {[%clk 0:00:04.8]} 41. Bd6+
{[%clk 0:00:05.2]} 41... Kc6 {[%clk 0:00:04.8]} 42. Bxe5 {[%clk 0:00:04.9]}
42... Rxb3 {[%clk 0:00:03]} 43. Bc3 {[%clk 0:00:04.3]} 43... Rb5 {[%clk
0:00:02.5]} 44. Rd4 {[%clk 0:00:04.4]} 44... Re5 {[%clk 0:00:01.3]} 45. Kd2
{[%clk 0:00:04.2]} 45... Re6 {[%clk 0:00:01.1]} 46. h5 {[%clk 0:00:03.8]} 46...
Bd5 {[%clk 0:00:01]} 47. Rg4 {[%clk 0:00:02.6]} 47... Bf3 {[%clk 0:00:00.5]} 48.
Rg7 {[%clk 0:00:02.1]} 1-0